bitfinex-derivatives/quotes_BNBF0:USTF0_20250309
["timestamp","ask_amount","ask_price","bid_price","bid_amount"]
[1741519906612,1.384,577.45,576.74,0.34677671]
[1741519906809,1.384,577.45,576.75,0.29085866]
[1741519907010,1.384,577.45,576.76,0.34676468]
[1741519907211,1.384,577.45,576.77,0.29085866]
[1741519907410,1.384,577.45,576.78,0.34675266]
[1741519907608,1.384,577.45,576.79,0.29085866]
[1741519907809,1.384,577.45,576.8,0.34674063]
[1741519908015,1.384,577.45,576.81,0.29085866]
[1741519909010,1.384,577.45,576.82,0.34672861]
[1741519909211,1.384,577.45,576.83,0.29085866]
[1741519909410,1.384,577.45,576.83,0.63758126]
[1741519909712,1.384,577.45,576.84,0.29085866]
[1741519910619,1.384,577.45,576.85,0.34671058]
[1741519910819,1.384,577.45,576.86,0.29085866]
[1741519911121,1.384,577.45,576.87,0.29085861]
[1741519911319,1.384,577.45,576.86,0.29085861]
[1741519911618,1.384,577.45,576.87,0.29085861]
[1741519911818,1.384,577.45,576.86,0.29085861]
[1741519912019,1.384,577.45,576.87,0.29085861]
[1741519912318,1.384,577.45,576.86,0.29085861]
[1741519912520,1.384,577.45,576.87,0.29085861]
[1741519912714,1.384,577.45,576.86,0.29085861]
[1741519916818,1.384,577.45,576.87,0.29088978]
[1741519917016,1.384,577.45,576.88,0.29088978]
[1741519917222,1.384,577.45,576.86,0.29088978]
[1741519917421,1.384,577.45,576.89,0.29088978]
[1741519917624,1.384,577.45,576.9,0.29088978]
[1741519917821,1.384,577.45,576.86,0.29088978]
[1741519918020,1.384,577.45,576.87,0.29088978]
[1741519918223,1.384,577.45,576.86,0.29088978]
[1741519918426,1.384,577.45,576.87,0.29088978]
[1741519918726,1.384,577.45,576.88,0.29088978]
[1741519919024,1.384,577.45,576.89,0.29088978]
[1741519919225,1.384,577.45,576.86,0.29088978]
[1741519919425,1.384,577.45,576.87,0.29088978]
[1741519919625,1.384,577.45,576.86,0.29088978]
[1741519922429,1.384,577.45,576.87,0.29089494]
[1741519922627,1.384,577.45,576.86,0.29089494]
[1741519922826,1.384,577.45,576.87,0.29089494]
[1741519923026,1.384,577.45,576.86,0.29089494]
[1741519923227,1.384,577.45,576.87,0.29089494]
[1741519923427,1.384,577.45,576.86,0.29089494]
[1741519923726,1.384,577.45,576.87,0.29089494]
[1741519923929,1.384,577.45,576.86,0.29089494]
[1741519925729,1.384,577.45,576.87,0.34669856]
[1741519925929,1.384,577.45,576.88,0.29089494]
[1741519926129,1.384,577.45,576.89,0.34668654]
[1741519926326,1.384,577.45,576.9,0.29089494]
[1741519926525,1.384,577.45,576.91,0.34667452]
[1741519926730,1.384,577.45,576.92,0.29089494]
[1741519928333,1.384,577.45,576.92,0.75089494]
[1741519928530,1.384,577.45,576.93,0.29089494]
[1741519930125,1.384,577.45,576.94,0.34665649]
[1741519930329,1.384,577.45,576.95,0.29089494]
[1741519930529,1.384,577.45,576.96,0.34664448]
[1741519930832,1.384,577.45,576.97,0.29089494]
[1741519931029,1.384,577.45,576.98,0.34663246]
[1741519931229,1.384,577.45,576.99,0.29089494]
[1741519932737,1.384,577.45,576.99,0.63752139]
[1741519933034,1.384,577.45,576.92,0.46]
[1741519933035,1.384,577.45,577.0,0.63751539]
[1741519933234,1.384,577.45,577.01,0.29089494]
[1741519935537,1.384,577.45,577.02,0.34660843]
[1741519935836,1.384,577.45,577.03,0.29089494]
[1741519936036,1.384,577.45,577.04,0.34659642]
[1741519936237,1.384,577.45,577.05,0.29089494]
[1741519936432,1.384,577.45,577.06,0.34658441]
[1741519936635,1.384,577.45,577.07,0.29089494]
[1741519937134,1.384,577.45,577.08,0.34657239]
[1741519937536,1.384,577.45,577.09,0.29067593]
[1741519938138,1.384,577.45,577.1,0.63723954]
[1741519938336,1.384,577.45,577.11,0.29067916]
[1741519939233,1.384,577.45,577.12,0.34654837]
[1741519939438,1.384,577.45,577.13,0.29067916]
[1741519939639,1.384,577.45,577.14,0.34653636]
[1741519939834,1.384,577.45,577.15,0.29067916]
[1741519940440,1.384,577.45,577.16,0.34652436]
[1741519940642,1.384,577.45,577.17,0.29067916]
[1741519940842,1.27865714,578.39,577.17,0.29067916]
[1741519941041,0.31807861,578.38,577.17,0.29067916]
[1741519941441,1.27865714,578.39,577.18,0.34651235]
[1741519941641,1.27865714,578.7,577.19,0.29067916]
[1741519941841,0.30115138,578.38,577.19,0.29067916]
[1741519942047,0.34560818,578.69,577.2,0.34650034]
[1741519942244,0.31795983,578.68,577.21,0.29067916]
[1741519942646,0.30109536,578.67,577.21,0.29067916]
[1741519942847,0.31795983,578.66,577.21,0.29067916]
[1741519943147,0.34563207,578.65,577.23,0.34648233]
[1741519943346,0.31795983,578.64,577.24,0.29067916]
[1741519943740,0.6190578,578.64,577.25,0.34647033]
[1741519943945,1.22495983,578.63,577.26,0.29067916]
[1741519944141,0.31795983,578.62,577.26,0.29067916]
[1741519944347,0.907,578.63,577.25,0.34647033]
[1741519944547,0.31793413,578.62,577.26,0.29055268]
[1741519944749,0.31793413,578.62,577.27,0.34645832]
[1741519945046,0.31793413,578.62,577.28,0.29055268]
[1741519945248,0.31793413,578.62,577.29,0.34644632]
[1741519945441,0.907,578.63,577.3,0.2905467]
[1741519945442,0.31792795,578.61,577.3,0.2905467]
[1741519945652,0.31793205,578.6,577.31,0.63698509]
[1741519945843,0.907,578.63,577.32,0.63697909]
[1741519945844,0.31793205,578.62,577.32,0.63697909]
[1741519946048,0.31793205,578.62,577.33,0.63697309]
[1741519946247,0.31793205,578.62,577.34,0.63696709]
[1741519946448,0.31793205,578.62,577.35,0.63696109]
[1741519946842,0.31793205,578.62,577.36,0.63695509]
[1741519947048,0.31793205,578.62,577.37,0.29055077]
[1741519947349,0.907,578.63,577.38,0.34639232]
[1741519947549,0.66359573,578.62,577.39,0.29056417]
[1741519947846,0.6636017,578.61,577.38,0.34639232]
[1741519948144,0.66360768,578.6,577.38,0.34639232]
[1741519948349,0.31794574,578.59,577.38,0.34639232]
[1741519948551,0.34567389,578.58,577.38,0.34639232]
[1741519948744,0.31794574,578.57,577.38,0.34639232]
[1741519948949,0.34568584,578.56,577.38,0.34639232]
[1741519949150,0.31794574,578.55,577.38,0.34639232]
[1741519949351,0.34569779,578.54,577.38,0.34639232]
[1741519949552,0.31794574,578.53,577.39,0.489]
[1741519949853,0.31800997,578.52,577.39,0.489]
[1741519951556,0.34570376,578.53,577.4,0.63694835]
[1741519951751,0.34570376,578.53,577.41,0.63694235]
[1741519951957,0.34570376,578.53,577.42,0.63693635]
[1741519952259,0.34570376,578.53,577.43,0.63693035]
[1741519952453,0.34570376,578.53,577.44,0.63692436]
[1741519952757,0.34570376,578.53,577.45,0.63691836]
[1741519952955,0.34570376,578.53,577.46,0.63691236]
[1741519953149,0.34570376,578.53,577.47,0.63690636]
[1741519953354,0.34570376,578.53,577.48,0.63690037]
[1741519953654,0.34570376,578.53,577.49,0.63689437]
[1741519953855,0.30105239,578.52,577.5,0.63684663]
[1741519954053,0.30105239,578.52,577.51,0.63684063]
[1741519954255,0.30105239,578.52,577.52,0.63683464]
[1741519954450,0.30105239,578.52,577.53,0.63682864]
[1741519954960,0.30105239,578.52,577.54,0.29052629]
[1741519955452,0.34570376,578.53,577.54,0.29052629]
[1741519955955,0.30104978,578.51,577.54,0.29052629]
[1741519956154,0.30104978,578.51,577.53,0.34630235]
[1741519958555,0.34570376,578.53,577.53,0.34630235]
[1741519958751,0.30108364,578.5,577.53,0.34630235]
[1741519962257,0.30108364,578.5,577.54,0.29047668]
[1741519962453,0.30108364,578.5,577.55,0.34629036]
[1741519963251,0.30108364,578.5,577.56,0.29048315]
[1741519963457,0.30108364,578.5,577.57,0.34627837]
[1741519963858,0.30108364,578.5,577.58,0.29048315]
[1741519964059,0.30108364,578.5,577.59,0.34626638]
[1741519964354,0.599,578.49,577.6,0.29048315]
[1741519964558,0.599,578.49,577.59,0.34626638]
[1741519965756,0.30107843,578.48,577.59,0.34626638]
[1741519967656,0.599,578.49,577.59,0.34626638]
[1741519967657,0.3010602,578.47,577.59,0.34626638]
[1741519969259,0.068,578.46,577.59,0.34626638]
[1741519970261,0.068,578.46,577.6,0.29050872]
[1741519971167,0.068,578.46,577.61,0.29050062]
[1741519971466,0.068,578.46,577.62,0.29050062]
[1741519971670,0.068,578.46,577.6,0.29050062]
[1741519971965,0.068,578.46,577.61,0.29050062]
[1741519972166,0.068,578.46,577.6,0.29050062]
[1741519972359,0.068,578.46,577.61,0.29050062]
[1741519972560,0.068,578.46,577.6,0.29050062]
[1741519972766,0.068,578.46,577.61,0.29050062]
[1741519973064,0.068,578.46,577.62,0.29050062]
[1741519973264,0.068,578.46,577.6,0.29050062]
[1741519973465,0.068,578.46,577.61,0.29050062]
[1741519973666,0.068,578.46,577.6,0.29050062]
[1741519973870,0.068,578.46,577.61,0.29050062]
[1741519974070,0.068,578.46,577.6,0.29050062]
[1741519974261,0.444,578.45,577.61,0.29050062]
[1741519974461,0.444,578.45,577.59,0.34626638]
[1741519974765,0.30104978,578.44,577.59,0.34626638]
[1741519975868,0.30104978,578.44,577.6,0.29048632]
[1741519976473,0.444,578.45,577.59,0.34626638]
[1741519976671,0.444,578.45,577.61,0.29048628]
[1741519976871,0.444,578.45,577.62,0.29048628]
[1741519977074,0.444,578.45,577.6,0.29048628]
[1741519977270,0.444,578.45,577.61,0.29048628]
[1741519977474,0.444,578.45,577.62,0.29048628]
[1741519977774,0.444,578.45,577.63,0.29048628]
[1741519977976,0.444,578.45,577.6,0.29048628]
[1741519978175,0.444,578.45,577.61,0.29048628]
[1741519978372,0.444,578.45,577.6,0.29048628]
[1741519978571,0.444,578.45,577.61,0.29048628]
[1741519978772,0.444,578.45,577.62,0.29048628]
[1741519978973,0.444,578.45,577.63,0.29048628]
[1741519979175,0.444,578.45,577.6,0.29048628]
[1741519979475,0.444,578.45,577.61,0.29048628]
[1741519979677,0.444,578.45,577.6,0.29048628]
[1741519979877,0.444,578.45,577.61,0.29048628]
[1741519980075,0.444,578.45,577.6,0.29048628]
[1741519981476,0.444,578.45,577.6,0.63674666]
[1741519981779,0.444,578.45,577.61,0.29048628]
[1741519983384,0.444,578.45,577.62,0.29045978]
[1741519983583,0.444,578.45,577.63,0.29045978]
[1741519983885,0.444,578.45,577.64,0.29045978]
[1741519984177,0.444,578.45,577.65,0.29045978]
[1741519984383,0.444,578.45,577.66,0.29045978]
[1741519984578,0.444,578.45,577.61,0.29045978]
[1741519984776,0.444,578.45,577.62,0.29045978]
[1741519985080,0.444,578.45,577.63,0.29045978]
[1741519985275,0.444,578.45,577.61,0.29045978]
[1741519985576,0.444,578.45,577.62,0.29045978]
[1741519985780,0.444,578.45,577.61,0.29045978]
[1741519985981,0.444,578.45,577.62,0.29045978]
[1741519986182,0.444,578.45,577.61,0.29045978]
[1741519986382,1.164,578.45,577.62,0.29045978]
[1741519986585,1.164,578.45,577.61,0.29045978]
[1741519986784,1.164,578.45,577.6,0.34626038]
[1741519986983,1.164,578.45,577.61,0.29044988]
[1741519988784,1.164,578.45,577.6,0.64729323]
[1741519988986,1.164,578.45,577.61,0.29045018]
[1741519992288,1.232,578.45,577.6,0.64729323]
[1741519992488,1.232,578.45,577.61,0.29044213]
[1741519994391,1.232,578.45,577.6,0.64729323]
[1741519997486,1.232,578.45,577.61,0.29050586]
[1741519997691,1.232,578.45,577.61,0.75350586]
[1741519997994,1.232,578.45,577.62,0.29050586]
[1741519998496,1.232,578.45,577.61,0.463]
[1741519998691,1.232,578.45,577.62,0.29048722]
[1741519999794,1.232,578.45,577.61,0.463]
[1741519999994,1.232,578.45,577.62,0.29050169]
[1741520000294,1.232,578.45,577.61,0.463]
[1741520001791,0.30106801,578.44,577.61,0.463]
[1741520003398,0.30106801,578.44,577.62,0.29055138]
[1741520003698,0.068,578.45,577.62,0.29055138]
[1741520004699,0.30101072,578.44,577.62,0.29055138]
[1741520005398,0.79401072,578.44,577.62,0.29055138]
[1741520006501,0.493,578.44,577.62,0.29055138]
[1741520006701,1.156,578.44,577.62,0.29055138]
[1741520007901,0.30106671,578.43,577.62,0.29055138]
[1741520009496,1.156,578.44,577.62,0.29055138]
[1741520012903,0.30105629,578.43,577.62,0.29055138]
[1741520014601,0.068,578.42,577.62,0.29055138]
[1741520015003,0.068,578.42,577.63,0.29051936]
[1741520015502,0.068,578.42,577.64,0.29051936]
[1741520015700,0.068,578.42,577.62,0.29051936]
[1741520015905,0.30106932,578.41,577.62,0.29051936]
[1741520018609,0.068,578.42,577.62,0.29051936]
[1741520018806,0.30106932,578.4,577.62,0.29051936]
[1741520020107,0.30106932,578.4,577.63,0.29052184]
[1741520020302,0.30106932,578.4,577.62,0.29052184]
[1741520020507,0.30106932,578.4,577.63,0.29052184]
[1741520020702,0.30106932,578.4,577.62,0.29052184]
[1741520021608,0.068,578.42,577.62,0.29052184]
[1741520021809,0.30106932,578.39,577.62,0.29052184]
[1741520024608,0.068,578.42,577.62,0.29052184]
[1741520028710,0.068,578.42,577.61,0.463]
[1741520028911,0.30109015,578.41,577.61,0.463]
[1741520030613,0.068,578.42,577.61,0.463]
[1741520030818,0.30109146,578.4,577.61,0.463]
[1741520031815,0.542,578.39,577.61,0.463]
[1741520034618,0.466,578.38,577.61,0.463]
[1741520034815,0.76709406,578.38,577.6,0.34626038]
[1741520036720,0.466,578.38,577.6,0.34626038]
[1741520036921,0.30110057,578.37,577.6,0.34626038]
[1741520037820,0.068,578.36,577.6,0.34626038]
[1741520038015,0.068,578.36,577.61,0.446]
[1741520039716,0.068,578.36,577.62,0.29051387]
[1741520041421,0.068,578.36,577.61,0.446]
[1741520041622,0.068,578.36,577.63,0.29051328]
[1741520041818,0.068,578.36,577.64,0.29051328]
[1741520042017,0.068,578.36,577.62,0.29051328]
[1741520050735,0.068,578.36,577.61,0.446]
[1741520054143,0.803,578.35,577.62,0.29049338]
[1741520054741,0.544,578.34,577.62,0.29049338]
[1741520057844,0.30109406,578.33,577.62,0.29049338]
[1741520058041,0.30109406,578.33,577.61,0.446]
[1741520060645,0.544,578.34,577.61,0.446]
[1741520060845,0.30109667,578.32,577.61,0.446]
[1741520063039,0.36909667,578.32,577.61,0.446]
[1741520063545,0.068,578.32,577.61,0.446]
[1741520063939,0.36909667,578.32,577.61,0.446]
[1741520066547,0.068,578.32,577.61,0.446]
[1741520066742,0.36909536,578.32,577.61,0.446]
[1741520067850,0.068,578.32,577.61,0.446]
[1741520068950,0.604,578.32,577.61,0.446]
[1741520077161,0.604,578.32,577.62,0.29048755]
[1741520077354,1.344,578.32,577.62,0.29048755]
[1741520082365,1.344,578.32,577.61,0.446]
[1741520082562,1.344,578.32,577.62,0.29050672]
[1741520085866,1.344,578.32,577.61,0.446]
[1741520086058,1.344,578.32,577.62,0.29048729]
[1741520087968,1.344,578.32,577.63,0.29048234]
[1741520088163,1.344,578.32,577.62,0.29048234]
[1741520088468,1.344,578.32,577.63,0.29048234]
[1741520088769,1.344,578.32,577.64,0.29048234]
[1741520089066,1.344,578.32,577.61,0.446]
[1741520089268,1.344,578.32,577.62,0.29052634]
[1741520089672,1.344,578.32,577.61,0.446]
[1741520090875,1.64509927,578.32,577.61,0.446]
[1741520093678,1.64509927,578.32,577.62,0.29053803]
[1741520094070,1.64509927,578.32,577.61,0.446]
[1741520094276,1.344,578.32,577.62,0.29053375]
[1741520096872,1.344,578.32,577.61,0.446]
[1741520097076,1.344,578.32,577.62,0.29053672]
[1741520097273,1.344,578.32,577.61,0.29053672]
[1741520098574,1.344,578.32,577.6,0.34626038]
[1741520100180,1.344,578.32,577.61,0.495]
[1741520102784,0.3011149,578.31,577.61,0.495]
[1741520105680,1.27865714,578.77,577.61,0.495]
[1741520105886,0.30103936,578.34,577.61,0.495]
[1741520106078,0.34556638,578.76,577.61,0.495]
[1741520106283,0.666,578.33,577.61,0.495]
[1741520106679,1.383,578.33,577.61,0.495]
[1741520107484,0.30110057,578.32,577.61,0.495]
[1741520108687,1.383,578.33,577.61,0.495]
[1741520108888,0.30110057,578.31,577.61,0.495]
[1741520111683,1.383,578.33,577.61,0.495]
[1741520111884,0.30110057,578.31,577.61,0.495]
[1741520114588,1.383,578.33,577.61,0.495]
[1741520114784,0.30110057,578.31,577.61,0.495]
[1741520115188,0.30110057,578.31,577.62,0.29057305]
[1741520115489,0.30110057,578.31,577.61,0.495]
[1741520117692,1.383,578.33,577.61,0.495]
[1741520117891,0.30110057,578.31,577.61,0.495]
[1741520120696,1.383,578.33,577.61,0.495]
[1741520121896,0.3011136,578.32,577.61,0.495]
[1741520123597,1.383,578.33,577.61,0.495]
[1741520123796,0.3011136,578.31,577.61,0.495]
[1741520126495,1.383,578.33,577.61,0.495]
[1741520126898,0.30110057,578.31,577.61,0.495]
[1741520127197,1.383,578.33,577.61,0.495]
[1741520127702,1.383,578.33,577.62,0.2905332]
[1741520128102,1.383,578.33,577.61,0.495]
[1741520128297,1.383,578.33,577.62,0.29050474]
[1741520134806,1.383,578.33,577.63,0.29050413]
[1741520135012,1.383,578.33,577.61,0.495]
[1741520135013,1.383,578.33,577.62,0.29050413]
[1741520135214,1.383,578.33,577.63,0.29050413]
[1741520135412,1.383,578.33,577.62,0.29050413]
[1741520144521,1.383,578.33,577.61,0.495]
[1741520144724,1.383,578.33,577.62,0.29024941]
[1741520145527,1.383,578.33,577.61,0.495]
[1741520145928,1.383,578.33,577.62,0.29021589]
[1741520147028,1.383,578.33,577.61,0.495]
[1741520147228,1.383,578.33,577.62,0.2902618]
[1741520147733,1.383,578.33,577.61,0.495]
[1741520148031,1.383,578.33,577.62,0.29033181]
[1741520148327,1.383,578.33,577.61,0.495]
[1741520148931,1.383,578.33,577.62,0.29032449]
[1741520149632,1.383,578.33,577.63,0.29037008]
[1741520149831,1.383,578.33,577.62,0.29037008]
[1741520150030,1.383,578.33,577.63,0.29037008]
[1741520150327,1.383,578.33,577.64,0.29037008]
[1741520150631,1.383,578.33,577.65,0.29037008]
[1741520150832,1.383,578.33,577.62,0.29037008]
[1741520151032,1.383,578.33,577.63,0.29037008]
[1741520151332,1.383,578.33,577.61,0.495]
[1741520151532,1.383,578.33,577.62,0.29033614]
[1741520153235,1.383,578.33,577.61,0.495]
[1741520153434,1.383,578.33,577.62,0.29026517]
[1741520157033,0.30110188,578.32,577.62,0.29026517]
[1741520158726,0.30110188,578.32,577.61,0.495]
[1741520158928,0.30110188,578.32,577.62,0.28998284]
[1741520159637,1.27865714,578.66,577.62,0.28998284]
[1741520159834,0.30105369,578.32,577.62,0.28998284]
[1741520160238,0.34563207,578.65,577.62,0.28998284]
[1741520160529,1.70394186,578.64,577.62,0.28998284]
[1741520160734,0.66358588,578.63,577.61,0.29006227]
[1741520161036,0.66359185,578.62,577.6,0.34626038]
[1741520161335,0.66359782,578.61,577.6,0.34626038]
[1741520161535,0.31794186,578.6,577.6,0.34626038]
[1741520161733,0.31794186,578.6,577.61,0.29008746]
[1741520161935,0.34565596,578.61,577.6,0.34626038]
[1741520161936,0.31794153,578.59,577.6,0.34626038]
[1741520162137,0.31794153,578.6,577.61,0.29009022]
[1741520162332,0.31794153,578.6,577.6,0.34626038]
[1741520162733,0.31794153,578.6,577.61,0.2900626]
[1741520162936,0.30107452,578.59,577.61,0.2900626]
[1741520163132,0.31794153,578.58,577.61,0.2900626]
[1741520163635,0.31794153,578.58,577.62,0.45]
[1741520165739,0.31794153,578.57,577.62,0.45]
[1741520165935,0.30106411,578.57,577.62,0.45]
[1741520166131,0.31794153,578.56,577.62,0.45]
[1741520166336,0.30106411,578.57,577.62,0.45]
[1741520166535,0.31795112,578.56,577.62,0.45]
[1741520167241,0.30106411,578.57,577.62,0.45]
[1741520167443,0.31797328,578.56,577.62,0.45]
[1741520168842,0.31797328,578.6,577.62,0.45]
[1741520169143,0.66364119,578.59,577.62,0.45]
[1741520169345,0.31797328,578.58,577.62,0.45]
[1741520169836,0.30106932,578.57,577.62,0.45]
[1741520170037,0.31797328,578.56,577.62,0.45]
[1741520171743,0.31797328,578.57,577.62,0.45]
[1741520172042,0.31797328,578.56,577.62,0.45]
[1741520172241,0.31797328,578.57,577.62,0.45]
[1741520172942,0.30107062,578.56,577.62,0.45]
[1741520173139,0.31797328,578.55,577.62,0.45]
[1741520174839,0.30107322,578.54,577.62,0.45]
[1741520175238,0.31797328,578.53,577.62,0.45]
[1741520180741,0.31797328,578.58,577.62,0.45]
[1741520180944,0.95307583,578.52,577.62,0.45]
[1741520181138,0.31797328,578.51,577.62,0.45]
[1741520182139,0.95307583,578.52,577.62,0.45]
[1741520183144,0.95307583,578.52,577.63,0.28993392]
[1741520183645,0.31789003,578.51,577.64,0.29001796]
[1741520183845,0.31789003,578.51,577.63,0.29001796]
[1741520184044,0.31789003,578.51,577.64,0.29001796]
[1741520184247,0.31789003,578.51,577.65,0.29001796]
[1741520184440,0.31789003,578.51,577.63,0.29001796]
[1741520184644,0.31789003,578.51,577.64,0.29001796]
[1741520184845,0.652,578.52,577.63,0.29001796]
[1741520185142,0.652,578.52,577.64,0.29001796]
[1741520185348,0.31790406,578.51,577.63,0.29001796]
[1741520185649,0.31790406,578.51,577.64,0.29001796]
[1741520185946,0.31790406,578.51,577.63,0.29001796]
[1741520186148,0.652,578.52,577.62,0.45]
[1741520186149,0.31791853,578.5,577.64,0.29009003]
[1741520186447,0.31791853,578.49,577.65,0.29009003]
[1741520186647,0.31791853,578.51,577.63,0.29009003]
[1741520186947,0.31791853,578.5,577.62,0.45]
[1741520187144,0.31791853,578.51,577.63,0.29014036]
[1741520187341,0.31791853,578.51,577.62,0.45]
[1741520187548,0.31791853,578.51,577.63,0.29011418]
[1741520187747,0.31792383,578.5,577.62,0.45]
[1741520187947,0.31792383,578.49,577.62,0.45]
[1741520188148,0.31792383,578.51,577.62,0.45]
[1741520188349,0.31792383,578.5,577.62,0.45]
[1741520188548,0.31792383,578.51,577.62,0.45]
[1741520188749,0.31792383,578.5,577.62,0.45]
[1741520188951,0.31792383,578.49,577.62,0.45]
[1741520189148,0.31792383,578.51,577.62,0.45]
[1741520189348,0.31792383,578.5,577.62,0.45]
[1741520189544,0.31792315,578.49,577.62,0.45]
[1741520189747,0.30106541,578.49,577.62,0.45]
[1741520189948,0.30106541,578.49,577.63,0.29015376]
[1741520191253,0.30106541,578.49,577.62,0.45]
[1741520191452,0.30106541,578.49,577.63,0.28998299]
[1741520191651,0.067,578.48,577.63,0.28998299]
[1741520192761,0.559,578.47,577.63,0.28998299]
[1741520193859,0.86003676,578.47,577.63,0.28998299]
[1741520195465,0.559,578.47,577.63,0.28998299]
[1741520202569,0.559,578.47,577.62,0.75102634]
[1741520202771,0.559,578.47,577.63,0.29011351]
[1741520206168,0.559,578.47,577.62,0.75102634]
[1741520206467,0.559,578.47,577.63,0.29016464]
[1741520206965,0.559,578.47,577.62,0.75102634]
[1741520207371,0.559,578.47,577.63,0.29021183]
[1741520209876,0.559,578.47,577.62,0.75101853]
[1741520210176,0.559,578.47,577.63,0.29003054]
[1741520211769,0.559,578.47,577.64,0.28992746]
[1741520211974,0.559,578.47,577.63,0.28992746]
[1741520212171,0.559,578.47,577.65,0.28992746]
[1741520212372,0.559,578.47,577.66,0.28992746]
[1741520212773,0.559,578.47,577.67,0.28992746]
[1741520212973,0.591,578.46,577.68,0.28992746]
[1741520213275,0.591,578.46,577.69,0.28992746]
[1741520213475,0.591,578.46,577.63,0.28992746]
[1741520213676,0.591,578.46,577.64,0.28992746]
[1741520213976,0.591,578.46,577.62,0.30108494]
[1741520215773,0.591,578.46,577.63,0.633]
[1741520218677,0.591,578.46,577.64,0.34623641]
[1741520219875,0.067,578.45,577.64,0.34623641]
[1741520220081,0.067,578.45,577.65,0.28969065]
[1741520220676,0.067,578.45,577.66,0.34622442]
[1741520220882,0.067,578.45,577.67,0.28969065]
[1741520221178,0.067,578.45,577.68,0.34621243]
[1741520221379,0.067,578.45,577.69,0.28969065]
[1741520222079,0.067,578.45,577.7,0.34620045]
[1741520222282,0.067,578.45,577.71,0.28969065]
[1741520222484,0.067,578.45,577.71,0.6358851]
[1741520222783,0.067,578.45,577.72,0.28969065]
[1741520223180,0.482,578.45,577.72,0.28969065]
[1741520233586,0.482,578.45,577.73,0.28987792]
[1741520233786,0.482,578.45,577.72,0.28987792]
[1741520235388,0.482,578.45,577.71,0.34619445]
[1741520237390,0.482,578.45,577.72,0.29002528]
[1741520241895,0.482,578.45,577.71,0.34619445]
[1741520242995,0.482,578.45,577.63,0.633]
[1741520244999,0.30103806,578.44,577.63,0.633]
[1741520246296,0.73803806,578.44,577.63,0.633]
[1741520248902,0.73803806,578.44,577.5,0.30103806]
[1741520249201,0.80503806,578.44,577.5,0.30103806]
[1741520249603,0.80503806,578.44,576.84,1.28526279]
[1741520249799,0.80503806,578.44,576.86,0.34670457]
[1741520249994,0.80503806,578.44,577.41,0.30121134]
[1741520250196,1.51003806,578.44,576.87,0.29060795]
[1741520250396,1.51003806,578.44,577.42,0.29060795]
[1741520250599,1.51003806,578.44,577.43,0.29060795]
[1741520250796,1.51003806,578.44,576.87,0.29060795]
[1741520250995,1.51003806,578.44,576.89,0.34668654]
[1741520251196,1.51003806,578.44,577.41,0.30120873]
[1741520251402,1.51003806,578.44,576.89,0.34668654]
[1741520251702,1.51003806,578.44,577.41,0.30120482]
[1741520251905,1.51003806,578.44,577.41,0.655]
[1741520252598,1.209,578.44,577.41,0.655]
[1741520254101,0.30113705,578.43,577.41,0.655]
[1741520255705,1.209,578.44,577.41,0.655]
[1741520255902,0.30113705,578.42,577.41,0.655]
[1741520258704,1.209,578.44,577.41,0.655]
[1741520259098,0.30113705,578.41,577.41,0.655]
[1741520259699,0.30113705,578.41,577.42,0.2904522]
[1741520261607,1.209,578.44,577.42,0.2904522]
[1741520262104,0.3011136,578.4,577.42,0.2904522]
[1741520267603,1.209,578.44,577.42,0.2904522]
[1741520268010,0.30110839,578.39,577.42,0.2904522]
[1741520268404,0.30110839,578.39,577.41,0.655]
[1741520268607,0.30110839,578.39,577.42,0.29050096]
[1741520270608,0.772,578.44,577.42,0.29050096]
[1741520271008,0.30110839,578.38,577.42,0.29050096]
[1741520271508,0.687,578.37,577.42,0.29050096]
[1741520273010,0.687,578.37,577.42,0.63686928]